Cogmind - Beta 14 @@@ ROGUE MODE // 2025.03.31 @ 22:00:12 Player: golanco Result: Destroyed by Y-45 Defender with Heavy Assault Rifle Performance ------------- Evolutions (2) 1000 Regions Visited (4) 800 Robots Destroyed (13) 65 Value Destroyed (282) 282 Prototype IDs (0) 0 Alien Tech Used (0) 0 Bonus (25) 25 TOTAL SCORE: 2172 Bonus ------- Follower Combat Kills 25 Cogmind --------- Core Integrity 0/550 Matter 300/300 Energy 99/100 System Corruption 1% Temperature Cool (9) Movement Core (50) Location -8/Materials Parts ------- > --- POWER (1) -------- (None) > --- PROPULSION (4) --- (None) > --- UTILITY (4) ------ (None) > --- WEAPON (2) ------- (None) > --- INVENTORY (5) ---- Light Ion Engine Rocket Launcher Peak State ------------ > --- POWER ------------ Ion Engine > --- PROPULSION ------- Cesium-ion Thruster Cesium-ion Thruster Cesium-ion Thruster Cesium-ion Thruster > --- UTILITY ---------- Small Storage Unit > --- WEAPON ----------- Small Laser Small Laser > --- INVENTORY -------- Light Ion Engine Rocket Launcher [Rating: 16] Favorites ----------- Power Ion Engine Engine Ion Engine Propulsion Light Treads Treads Light Treads Flight Unit Cesium-ion Thruster Utility Small Storage Unit Storage Small Storage Unit Weapon Small Laser Energy Gun Small Laser Build | -11 -10 -10 -9 -8 ------- Run | Yrd Mat Min Mat Mat Slots Evolved 4 | . . . 2 2 Power . | . . . . . Propulsion 2 | . . . 2 . Utility 2 | . . . . 2 Weapon . | . . . . . Parts Attached 13 | 6 1 . 6 . Power 2 | 1 . . 1 . Engine 2 | 1 . . 1 . Core . | . . . . . Reactor . | . . . . . Propulsion 7 | 2 . . 5 . Treads 2 | 2 . . . . Leg . | . . . . . Wheel . | . . . . . Hover . | . . . . . Flight 5 | . . . 5 . Utility 1 | 1 . . . . Device . | . . . . . Storage 1 | 1 . . . . Processor . | . . . . . Hackware . | . . . . . Protection . | . . . . . Artifact . | . . . . . Weapon 3 | 2 1 . . . Energy Gun 3 | 2 1 . . . Energy Cannon . | . . . . . Ballistic Gun . | . . . . . Ballistic Cannon . | . . . . . Launcher . | . . . . . Special Weapon . | . . . . . Impact Weapon . | . . . . . Slashing Weapon . | . . . . . Piercing Weapon . | . . . . . Special Melee Weapon . | . . . . . Unidentified Prototypes . | . . . . . Parts Lost 10 | . 1 . 3 6 Power 2 | . . . 1 1 Propulsion 5 | . . . 1 4 Utility . | . . . . . Weapon 3 | . 1 . 1 1 Highest Loss Streak 4 | . 1 . 3 4 To Critical Strikes . | . . . . . Average Slot Usage (%) 71 | . 85 85 74 17 Engine 10 | . 14 14 8 1 Treads 19 | . 28 28 6 . Flight 7 | . . . 31 11 Storage 11 | . 14 14 11 3 Energy Gun 21 | . 28 28 18 1 Peak Build Rating 16 | 6 6 6 16 13 Average Rating 6 | 4 5 6 11 3 On Entrance 6 | . 6 6 6 13 Naked Turns 48 | . . . . 48 Heaviest Build 13 | 13 13 12 12 9 Greatest Support 40 | 40 40 40 40 19 Greatest Overweight (x) 2 | . . . 2 . Average Overweight (x) . | . . . . . Largest Inventory Capacity 8 | 8 8 8 8 8 Average Capacity 7 | 7 8 8 8 6 Most Carried 3 | 2 2 2 3 2 Average Carried 1 | 1 1 1 2 2 Final Capacity 8 | 8 8 8 8 5 Final Carried 2 | 2 1 2 2 2 Class Distribution -------------------- 84% | Mutant 15% | Sprinter Dominant Class ---------------- Mutant | -10/Materials Mutant | -10/Mines Sprinter | -9/Materials Mutant | -8/Materials Resources | -11 -10 -10 -9 -8 ----------- Run | Yrd Mat Min Mat Mat Matter Collected 298 | 218 52 . 28 . Remotely . | . . . . . Salvage Created 363 | . 269 . 77 17 Parts 30 | . 17 . 10 3 Haulers Intercepted . | . . . . . Recyclers Shooed . | . . . . . Parts Field Recycled . | . . . . . Retrieved Matter . | . . . . . Parts Self-Destructed . | . . . . . Prevented . | . . . . . Kills | -11 -10 -10 -9 -8 ------- Run | Yrd Mat Min Mat Mat Combat Hostiles Destroyed 11 | . 6 . 5 . Guns 11 | . 6 . 5 . Classes Destroyed 3 | . 1 1 1 . Worker 2 | . . 1 . 1 Swarmer 5 | . . . 5 . Grunt 6 | . 6 . . . Best Kill Streak 5 | . 2 1 5 1 Combat Bots Only 5 | . 2 . 5 . Max Kills in Single Turn 1 | . 1 1 1 1 Gunslinging . | . . . . . Exploded . | . . . . . Melee . | . . . . . Uniques/NPCs Destroyed . | . . . . . Combat | -11 -10 -10 -9 -8 -------- Run | Yrd Mat Min Mat Mat Hostile Shots Fired 170 | . 47 . 41 82 Missed 52 | . 14 . 7 31 Damage Taken 1429 | . 422 . 283 724 Core 740 | . 96 . 82 562 Absorbed by Shields . | . . . . . Core Remaining (%) 80 | 100 . 61 79 . Volleys Fired 43 | . 32 . 9 2 Largest 2 | . 2 . 2 1 Hottest 80 | . 80 . 80 40 Shots Fired 79 | . 62 . 15 2 Gun 79 | . 62 . 15 2 Cannon . | . . . . . Launcher . | . . . . . Special . | . . . . . Kinetic . | . . . . . Thermal 65 | . 48 . 15 2 Explosive . | . . . . . Electromagnetic 14 | . 14 . . . Robot Hit Streak 6 | . 6 . 4 5 Robot Miss Streak 2 | . 2 . 2 . Penetration Max . | . . . . . Secondary Targets 1 | . 1 . . . Max Gunslinging Chain 1 | . 1 . . . Shots Hit Robots 47 | . 36 . 9 2 Core Hits 21 | . 15 . 5 1 Critical Kills . | . . . . . Critical Parts Destroyed . | . . . . . Critical Strikes 1 | . 1 . . . Corrupt 1 | . 1 . . . Melee Attacks . | . . . . . Impact . | . . . . . Slashing . | . . . . . Piercing . | . . . . . Sneak Attacks . | . . . . . Combat Hostiles . | . . . . . Follow-up Attacks . | . . . . . Damage Inflicted 600 | . 456 . 110 34 Guns 588 | . 456 . 110 22 Cannons . | . . . . . Explosions . | . . . . . Melee . | . . . . . Ramming 12 | . . . . 12 Kinetic . | . . . . . Thermal 453 | . 321 . 110 22 Explosive . | . . . . . Electromagnetic 135 | . 135 . . . Impact . | . . . . . Slashing . | . . . . . Piercing . | . . . . . Highest Corruption 1 | . . . 1 1 Average Corruption 1 | . . . 1 1 Corruption Purged . | . . . . . Corruption Blocked . | . . . . . Overload Shots . | . . . . . Overflow Damage . | . . . . . Projectiles . | . . . . . Explosions . | . . . . . Melee . | . . . . . Knockbacks . | . . . . . Impact . | . . . . . Kinetic . | . . . . . Secondary . | . . . . . Self-Inflicted Damage 5 | . . . . 5 Shots . | . . . . . Rammed 4 | . . . . 4 Targets Rammed 5 | . . 1 . 4 Kicked . | . . . . . Crushed 1 | . . 1 . . Highest Temperature 205 | . 205 . 40 2 Average Temperature 61 | . 70 . 15 2 Received Heat Transfer 447 | . 243 . 6 198 Siege Activations . | . . . . . Robots Corrupted . | . . . . . Combat Hostiles . | . . . . . Parts Fried . | . . . . . Impact Corruptions . | . . . . . Robots Melted . | . . . . . Combat Hostiles . | . . . . . Parts Melted . | . . . . . Heat Transferred 1025 | . 725 . 250 50 Parts Sabotaged . | . . . . . Parts Stolen . | . . . . . Parts Stripped . | . . . . . Power Chain Reactions . | . . . . . Alert | -11 -10 -10 -9 -8 ------- Run | Yrd Mat Min Mat Mat Peak Influence 380 | . 215 88 215 380 Initial 90 | . . 83 33 90 Average 103 | . 108 84 88 189 Maximum Alert Level 1 | . 1 . 1 1 Low Security (%) 81 | 100 70 100 97 53 Level 1 18 | . 29 . 2 46 Level 2 . | . . . . . Level 3 . | . . . . . Level 4 . | . . . . . Level 5 . | . . . . . High Security . | . . . . . Max Security . | . . . . . Squads Dispatched 5 | . 2 . 2 1 Investigation 4 | . 1 . 2 1 Extermination . | . . . . . Reinforcement 1 | . 1 . . . Assault . | . . . . . Garrison . | . . . . . Intercept . | . . . . . Searches Triggered . | . . . . . Construction Impeded . | . . . . . Haulers Reinforced . | . . . . . Active Scanning Responses . | . . . . . Cargo Convoy Interrupts . | . . . . . Stealth | -11 -10 -10 -9 -8 --------- Run | Yrd Mat Min Mat Mat Distress Signals 3 | . 1 . . 2 Communications Jammed . | . . . . . Distress Signals . | . . . . . Times Spotted 47 | . 14 . 10 23 Peak Tracking Total 17 | . 5 . 6 17 Tactical Retreats 6 | . 2 . . 4 Traps | -11 -10 -10 -9 -8 ------- Run | Yrd Mat Min Mat Mat Traps Triggered 2 | . 1 . . 1 Indirectly . | . . . . . Trap Hack Attempts . | . . . . . Triggered . | . . . . . Disarmed . | . . . . . Reprogrammed . | . . . . . Reused . | . . . . . Traps Extracted . | . . . . . Installed . | . . . . . Triggered . | . . . . . Machines | -11 -10 -10 -9 -8 ---------- Run | Yrd Mat Min Mat Mat Machines Disabled . | . . . . . Max in Single Turn . | . . . . . Machines Repaired . | . . . . . Machines Dismantled . | . . . . . Machines Sabotaged . | . . . . . Overloaded Fab Kills . | . . . . . Hacking | -11 -10 -10 -9 -8 --------- Run | Yrd Mat Min Mat Mat Machines Accessed 8 | . 1 . 5 2 Terminals 8 | . 1 . 5 2 Fabricators . | . . . . . Repair Stations . | . . . . . Recycling Units . | . . . . . Scanalyzers . | . . . . . Garrison Access . | . . . . . Total Hacks 19 | . 2 . 12 5 Successful 3 | . . . 3 . Failed 16 | . 2 . 9 5 Catastrophic 6 | . 1 . 3 2 Database Lockouts . | . . . . . Manual 15 | . 2 . 8 5 Terminals 19 | . 2 . 12 5 Fabricators . | . . . . . Repair Stations . | . . . . . Recycling Units . | . . . . . Scanalyzers . | . . . . . Garrison Access . | . . . . . Terminal Hacks 3 | . . . 3 . Registered Components 3 | . . . 3 . Fabricator Hacks . | . . . . . Repair Station Hacks . | . . . . . Recycling Unit Hacks . | . . . . . Scanalyzer . | . . . . . Garrison Access Hacks . | . . . . . Unauthorized Hacks . | . . . . . Terminals . | . . . . . Fabricators . | . . . . . Repair Stations . | . . . . . Recycling Units . | . . . . . Scanalyzers . | . . . . . Garrison Access . | . . . . . Data Cores Recovered . | . . . . . Used . | . . . . . Hacking Detections 7 | . 1 . 4 2 Full Trace Events 4 | . . . 2 2 Feedback Events 2 | . . . 1 1 Corruption 2 | . . . 1 1 Feedback Blocked . | . . . . . Robot Schematics Acquired . | . . . . . Robots Built . | . . . . . Authchips . | . . . . . Time . | . . . . . Total Robot Build Rating . | . . . . . Part Schematics Acquired . | . . . . . Parts Built . | . . . . . Authchips . | . . . . . Time . | . . . . . Total Part Build Rating . | . . . . . Parts Repaired . | . . . . . Time . | . . . . . Parts Recycled . | . . . . . Recycled Matter . | . . . . . Retrieved Matter . | . . . . . Retrieved Components . | . . . . . Parts Scanalyzed . | . . . . . Part Schematics Acquired . | . . . . . Parts Damaged . | . . . . . Bothacking | -11 -10 -10 -9 -8 ------------ Run | Yrd Mat Min Mat Mat Used RIF Installer . | . . . . . Robots Hacked . | . . . . . Non-combat . | . . . . . Combat . | . . . . . Robot Hacks Applied . | . . . . . Relay Couplers Released . | . . . . . Fabnet Peak Effective % . | . . . . . Robots Rewired . | . . . . . Allies Hacked . | . . . . . Hacks Repelled . | . . . . . Allies | -11 -10 -10 -9 -8 -------- Run | Yrd Mat Min Mat Mat Total Allies 1 | . . 1 . . Largest Group 1 | . . 1 1 . Highest-Rated Group 31 | . . 31 31 . Highest-Rated Ally 31 | . . 31 31 . Total Orders . | . . . . . Ally Attacks 8 | . . . 8 . Total Damage 124 | . . . 124 . Kills 1 | . . . 1 . Allies Corrupted . | . . . . . Allies Melted . | . . . . . Intel | -11 -10 -10 -9 -8 ------- Run | Yrd Mat Min Mat Mat Robot Analysis Total . | . . . . . Derelict Logs Recovered 2 | . . 2 . . Drone Launches . | . . . . . Drone Recoveries . | . . . . . Exploration | -11 -10 -10 -9 -8 ------------- Run | Yrd Mat Min Mat Mat Turns Passed 755 | 71 276 176 107 125 Spaces Moved 747 | 40 114 109 180 304 Core 90 | 3 . . . 87 Treads 274 | 37 114 109 14 . Legs . | . . . . . Wheels . | . . . . . Hover . | . . . . . Flight 383 | . . . 166 217 Fastest Speed 26 | 50 160 160 26 27 Average Speed 80 | 151 160 160 39 38 Slowest Speed 235 | 160 160 160 235 50 Overloaded Moves . | . . . . . Propulsion Burnouts . | . . . . . Robots Hopped 7 | . . . 2 5 Cave-ins Triggered . | . . . . . Exploration Rate (%) 24 | 4 34 24 24 38 Regions Visited 4 Branch Regions 1 Pre-discovered Areas . | . . . . . Known Exits Taken . | . . . . . Unknown Exits Taken 4 | 1 1 1 1 . Scrap Searched . | . . . . . Spaces Dug . | . . . . . Terrain Destroyed . | . . . . . Melee . | . . . . . Projectile . | . . . . . AOE . | . . . . . Terrain Rammed . | . . . . . Walls Destroyed . | . . . . . Machines Disabled . | . . . . . Actions | -11 -10 -10 -9 -8 --------- Run | Yrd Mat Min Mat Mat Total 806 | 47 146 110 197 306 Wait 2 | . . . 2 . Move 729 | 39 113 108 175 294 Hop 7 | . . . 2 5 Pick Up 4 | 2 . 1 1 . Fast Attach 11 | 6 . . 5 . Attach 2 | . 1 . 1 . Detach . | . . . . . Swap . | . . . . . Drop 3 | . . . 2 1 Fire 43 | . 32 . 9 2 Melee . | . . . . . Ram 4 | . . . . 4 Kick . | . . . . . Crush 1 | . . 1 . . Escape Stasis . | . . . . . Rewire . | . . . . . Trap . | . . . . . Miscellaneous . | . . . . . Route ------- -11/Scrapyard -10/Materials -10/Mines -9/Materials (discovered 2 exits: *Mat / [*Min]) -8/Materials (discovered 1 exit: [*Fac]) History --------- Turn | Location | Event 43 | -11/Scrapyard | Discovered new exit (range 15) 72 | -11/Scrapyard | Entered Materials 302 | -10/Materials | Build established: Mutant 324 | -10/Materials | Discovered new exit (range 16) 348 | -10/Materials | Entered Mines 355 | -10/Mines | Learned Materials interactive machine intel 375 | -10/Mines | Received a Rocket Launcher from a helpful Derelict 511 | -10/Mines | Discovered new exit (range 7) 512 | -10/Mines | Received a Mining Laser from a helpful Derelict 524 | -10/Mines | Entered Materials 524 | -9/Materials | Accompanied by 1 ally 524 | -9/Materials | Evolved 2 slots: Propulsion x2 525 | -9/Materials | Loaded intel: 18 interactive machine locations 568 | -9/Materials | Discovered new exit (range 7) 626 | -9/Materials | Lost 3 parts (1p1n1w) 630 | -9/Materials | Discovered new exit (range 3) 631 | -9/Materials | Entered another Materials area 631 | -8/Materials | Evolved 2 slots: Utility x2 689 | -8/Materials | Lost 4 parts (1p2n1w) 712 | -8/Materials | Core integrity fell below 50% 715 | -8/Materials | Discovered new exit (range 16) 722 | -8/Materials | Core integrity fell below 20% 756 | -8/Materials | Destroyed by Y-45 Defender with Heavy Assault Rifle Last Messages --------------- C-30 ARC bursts open, deploying its payload. G-50 Soldier unfolds itself. G-47 Trooper unfolds itself. Cesium-ion Thruster destroyed. Atomic Centrifuge disabled. Connecting with Terminal... Current location identified: Materials Feedback: System corruption (+1%). Flight Unit destroyed. S-10 Pest destroyed. Critical hit (Burn: +37). W-25 Informer sends out distress signal. EXIT=FOUND Slammed into A-02 Transporter. Destabilizing: Core damaged (-16). Slammed into A-02 Transporter. Connecting with Terminal... Electrolysis Chamber disabled. Slammed into Y-45 Defender. Destabilizing: Core damaged (-22). Map ----- +----------------------------------------------------+ | ????????????????????????# ## ?????????????? | | ?????????????############ ## """ #???????????? | | ?????????????# T ## ## """ #???????????? | | ????????????## / # # """ #???????????? | | ????????????# "" #% # """ [#???????????? | | ????????????## """ === += + ###########?? | | ?????????????# "" === # # """ # #?? | | ?????????????# === # # """ # """" #?? | | ?????????????# ## ## """ # """" "" #?? | | ?????????????# ## ##! """ # """" "" #?? | | ?????????????############ ## # T" #?? | | ????????????????????????# ########## "" #?? | | ????????????????????????# %#????????# "" #?? | | ????????????????????????# #????????# #?? | | ????????????????????????# ##############+#####?? | | ????????????????????????# % % % #??? | | ????????????????????????# < #??? | | ????????????????????????#r #??? | | ????????????????????????# ########### #####??? | | ????????????????????????# # # #??????? | | ????????????????????????# # # #??????? | | ?????????????????#??????# aw# """ ]# #??????? | | ?????????????????# ????# # """ # #??????? | | ?????????????????# ??#u Y/% "" # #??????? | | ?????????????????# # # !!!# #?###### | | ?????????????????# /@ # !! # #? """ # | | ?????????????????# # # !! # # """ # | | ?????????????????# ??#u #####/##### # """ # | | ?????????????????######## #??## ##??# + # | | ????????????????? #??# #??#^ # # | | ???????????????? #### #??# # !# | | ???????????????? #??# #?###### | | ???????????????? r #??# ^#? # | | ???????????????? """ #??# # # | | ?????????????????? """ #??# # # | | ??????????????????####### """ #### + # | | ????????????????????????# # # | | ????????????????????????# # # | | ????????????????????????# #?###### | | ????????????????????????# ##+###########+##??????? | | ????????????????????????# # ??????? ??????? | | ????????????????????????#?# ??? #????? | | ??????????????????????????# """ ## #????? | | ??????????????????????????# """ ## #????? | | ??????????????????????????# """ ## #????? | | ??????????????????????????# ## ! #????? | | ??????????????????????????######### #????? | | ??????????????????????????????????# #????? | | ??????????????????????????????????###########????? | | ?????????????????????????????????????????????????? | +----------------------------------------------------+ Best States ------------- Heat Dissipation 31 Energy Generation 10 Energy Capacity 250 Matter Stores 300 Matter Capacity 300 Sight Range 16 Terrain Scan Density 10 Evasion (%) 64 Recoil Reduction 2 Item Schematics ----------------- None Robot Schematics ------------------ None Fabricated ------------ Nothing Alien Tech Used ----------------- None Achievements -------------- None Challenges ------------ None Game ------ Seed NullBarrageWartreads Manual? 0 Play Time 00:10:24 Cumulative 34.7 hours Start 2025.03.31 @ 21:52:23 End 2025.03.31 @ 22:00:12 Sessions 1 Manual Loads 0 Difficulty Rogue Special Mode None Game No. 101 Rogue 101 Adventurer 0 Explorer 0 Win Type - Total 0 Types 0/0/0/0/0/0/0/0/0 Lore% 16 Gallery% 24 Achievement% 26 Wizard Run 0 Options --------- Layout 1 ASCII 0 Keyboard 0 Movement Mouse Keybinds 0 Fullscreen 1 Font 36/Smallcaps Map View 50x40 Zoom Use 0% Tactical HUD 0 Map Filters NONE Filters NONE Steam 1 RUN: ab2f3c64-d0bf-40d6-9bef-0dc86ae14392